bitfinex/quotes_ETHUSD_20250920
["timestamp","ask_amount","ask_price","bid_price","bid_amount"]
[1758382277264,7.22055765,4506.1,4506.0,0.20150001]
[1758382277428,7.19835452,4506.1,4506.0,1e-08]
[1758382280378,3.48635452,4506.1,4506.0,1e-08]
[1758382280675,7.22055765,4506.1,4506.0,1e-08]
[1758382280880,7.19835452,4506.1,4506.0,1e-08]
[1758382283482,3.48634384,4506.1,4506.0,1e-08]
[1758382283649,7.21854697,4506.1,4506.0,1e-08]
[1758382283986,7.19634384,4506.1,4506.0,1e-08]
[1758382285162,10.19634384,4506.1,4506.0,1e-08]
[1758382285702,10.43274384,4506.1,4506.0,1e-08]
[1758382286062,6.48634384,4506.1,4506.0,1e-08]
[1758382286261,10.19634384,4506.1,4506.0,1e-08]
[1758382286986,2.21931245,4505.9,4505.8,0.001]
[1758382287194,14.19285015,4505.9,4505.8,0.001]
[1758382287492,14.51798427,4505.9,4505.8,0.001]
[1758382288402,14.60697194,4505.9,4505.8,0.001]
[1758382290009,14.60733301,4505.9,4505.8,0.001]
[1758382290216,15.05086393,4505.9,4505.8,0.001]
[1758382291714,2.21950948,4505.5,4505.4,0.001]
[1758382291914,14.19440825,4505.5,4505.4,0.001]
[1758382292081,14.17220512,4505.5,4505.4,0.001]
[1758382292417,14.9412268,4505.5,4505.4,0.001]
[1758382292771,16.8612268,4505.5,4505.4,0.001]
[1758382292967,13.1502268,4505.5,4505.4,0.001]
[1758382293219,12.9138268,4505.5,4505.4,0.001]
[1758382293368,16.6248268,4505.5,4505.4,0.001]
[1758382297226,2.21960801,4505.3,4505.2,0.001]
[1758382297511,10.13031918,4505.3,4505.2,0.001]
[1758382297720,6.39811605,4505.3,4505.2,0.001]
[1758382297912,10.77555917,4505.3,4505.2,0.2025]
[1758382298716,10.77555917,4505.3,4505.2,0.001]
[1758382298931,6.21816694,4505.3,4505.2,0.2025]
[1758382299087,9.92816694,4505.3,4505.2,0.2025]
[1758382299612,9.92816694,4505.3,4505.2,0.001]
[1758382299803,9.92816694,4505.3,4505.2,0.2025]
[1758382300713,6.21816694,4505.3,4505.2,0.2025]
[1758382300893,9.92816694,4505.3,4505.2,0.2025]
[1758382301292,9.92816694,4505.3,4505.2,0.001]
[1758382303130,6.21816694,4505.3,4505.2,0.001]
[1758382303429,0.99855893,4505.3,4505.2,0.2025]
[1758382303585,3.21816694,4505.3,4505.2,0.2025]
[1758382303785,3.24037007,4505.3,4505.2,0.2025]
[1758382304792,3.03361272,4505.3,4505.2,0.2025]
[1758382305329,0.81400471,4505.3,4505.2,0.2025]
[1758382305490,3.01140959,4505.3,4505.2,0.2025]
[1758382306930,0.79180158,4505.3,4505.2,0.2025]
[1758382308331,3.01140959,4505.3,4505.2,0.2025]
[1758382308489,0.79180158,4505.3,4505.2,0.2025]
[1758382308684,3.01140959,4505.3,4505.2,0.2025]
[1758382309414,0.12435846,4505.3,4505.2,11.81435627]
[1758382312253,0.12435846,4505.5,4505.3,0.792]
[1758382312551,2.21947529,4505.6,4505.5,0.792]
[1758382312728,2.3441759,4505.6,4505.5,0.792]
[1758382312926,2.3441759,4505.6,4505.5,0.9935]
[1758382313152,0.12470061,4505.6,4505.5,0.9935]
[1758382313333,2.34416083,4505.6,4505.5,0.9935]
[1758382314050,0.12470061,4505.6,4505.5,0.9935]
[1758382314928,0.12470061,4505.8,4505.5,6.53661135]
[1758382315129,0.12470061,4505.7,4505.6,4.7035]
[1758382316861,2.34411157,4505.7,4505.6,4.7035]
[1758382317060,0.12470061,4505.7,4505.6,4.7035]
[1758382317362,2.34408024,4505.8,4505.6,4.7035]
[1758382317663,0.12470061,4505.7,4505.6,4.502]
[1758382318027,0.12470061,4505.7,4505.6,4.7035]
[1758382318757,2.22131547,4505.9,4505.7,0.792]
[1758382318758,0.12470061,4505.8,4505.7,0.792]
[1758382318957,0.12670061,4505.9,4505.8,0.2015]
[1758382319127,0.002,4505.9,4505.8,0.9935]
[1758382319321,0.12670061,4505.9,4505.8,0.9935]
[1758382319528,0.12670061,4505.9,4505.8,0.792]
[1758382320034,0.002,4505.9,4505.8,0.792]
[1758382320230,0.12670061,4505.9,4505.8,4.502]
[1758382320435,0.002,4505.9,4505.8,5.45451625]
[1758382321825,0.002,4505.9,4505.8,7.67387796]
[1758382323869,0.002,4505.9,4505.8,8.12041474]
[1758382329691,0.002,4505.9,4505.5,2.21950916]
[1758382329895,0.2277,4505.8,4505.6,3.709]
[1758382330257,0.2277,4505.8,4505.7,0.792]
[1758382330457,0.2277,4505.8,4505.7,4.501]
[1758382330667,0.002,4505.9,4505.7,4.501]
[1758382330889,0.2297,4505.9,4505.7,4.501]
[1758382331090,0.2297,4505.9,4505.8,0.02219361]
[1758382331292,0.002,4505.9,4505.8,0.02219361]
[1758382331494,0.002,4505.9,4505.8,9.9667824]
[1758382331790,0.002,4505.9,4505.8,12.94458879]
[1758382334083,0.002,4506.1,4506.0,6.0112632]
[1758382334270,0.002,4506.1,4506.0,9.7202632]
[1758382334484,0.002,4506.1,4506.0,9.9217632]
[1758382334685,0.002,4506.1,4506.0,11.8090484]
[1758382334890,0.002,4506.1,4506.0,16.71862823]
[1758382339927,0.002,4506.1,4506.0,16.51712823]
[1758382340229,0.002,4506.1,4506.0,16.71862823]
[1758382341916,0.002,4506.1,4506.0,17.87672425]
[1758382344601,0.002,4506.1,4506.0,17.67522425]
[1758382345205,0.002,4506.1,4506.0,13.96722425]
[1758382345405,0.002,4506.1,4506.0,17.67722425]
[1758382348454,0.2426,4506.1,4506.0,5.2192632]
[1758382348739,0.2426,4506.1,4506.0,8.9282632]
[1758382349142,0.2426,4506.1,4506.0,2.2192632]
[1758382349439,0.2426,4506.1,4506.0,5.9312632]
[1758382349635,0.2426,4506.1,4505.8,2.65421563]
[1758382349833,0.2406,4506.0,4505.9,3.712]
[1758382350025,0.2406,4506.0,4505.9,4.505]
[1758382350222,0.2406,4506.0,4505.9,6.72431245]
[1758382350829,0.2406,4506.0,4505.9,4.505]
[1758382351040,0.2406,4506.0,4505.9,6.72431245]
[1758382352753,0.2406,4506.0,4505.9,4.505]
[1758382353322,0.2406,4506.0,4505.9,0.792]
[1758382353526,0.2406,4506.0,4505.9,4.503]
[1758382353957,0.2406,4506.0,4505.9,0.792]
[1758382354164,0.2406,4506.0,4505.9,4.503]
[1758382355119,0.2406,4506.0,4505.9,3.711]
[1758382355823,0.49923466,4506.0,4505.9,3.711]
[1758382356244,0.49923466,4506.0,4505.9,4.503]
[1758382360654,0.2406,4506.0,4505.9,4.503]
[1758382361878,0.002,4506.1,4506.0,0.792]
[1758382362190,2.22121395,4506.1,4506.0,0.792]
[1758382362687,2.46181395,4506.1,4506.0,0.792]
[1758382362895,0.2426,4506.1,4506.0,0.792]
[1758382363296,0.002,4506.1,4506.0,0.792]
[1758382363480,0.002,4506.1,4506.0,0.81419263]
[1758382363791,0.002,4506.1,4506.0,3.03345583]
[1758382364601,0.002,4506.1,4506.0,0.81419263]
[1758382365499,0.002,4506.1,4506.0,3.23495583]
[1758382365702,0.002,4506.1,4506.0,4.75845332]
[1758382365931,0.002,4506.1,4506.0,4.73626069]
[1758382366135,0.002,4506.1,4506.0,4.53476069]
[1758382370701,0.002,4506.1,4506.0,4.73626069]
[1758382371520,0.002,4506.1,4506.0,4.53476069]
[1758382374403,0.237,4506.1,4506.0,4.53476069]
[1758382377044,0.002,4506.1,4506.0,4.53476069]
[1758382378123,0.002,4506.1,4506.0,8.24376069]
[1758382378324,0.002,4506.1,4506.0,6.02449749]
[1758382378524,0.002,4506.1,4506.0,4.501]
[1758382378726,0.002,4506.1,4506.0,6.7202632]
[1758382378926,0.237,4506.1,4506.0,6.7202632]
[1758382379120,0.002,4506.1,4506.0,6.7202632]
[1758382379709,0.237,4506.1,4506.0,4.501]
[1758382379916,0.237,4506.1,4506.0,6.7202632]
[1758382380850,0.237,4506.1,4506.0,4.501]
[1758382381718,0.002,4506.1,4506.0,4.501]
[1758382381933,0.002,4506.1,4506.0,3.709]
[1758382382128,0.237,4506.1,4506.0,4.52319263]
[1758382382336,0.237,4506.1,4506.0,4.501]
[1758382382728,0.237,4506.1,4506.0,0.792]
[1758382382924,0.237,4506.1,4506.0,4.501]
[1758382389766,2.5809862,4506.1,4506.0,4.501]
[1758382390064,2.83928482,4506.1,4506.0,4.501]
[1758382390430,2.83928482,4506.1,4506.0,0.792]
[1758382390630,2.83928482,4506.1,4506.0,4.501]
[1758382390858,0.62007087,4506.1,4506.0,4.501]
[1758382391167,0.36177225,4506.1,4506.0,4.501]
[1758382394359,2.5809862,4506.1,4506.0,4.501]
[1758382394669,0.36177225,4506.1,4506.0,4.501]
[1758382394865,2.5809862,4506.1,4506.0,4.501]
[1758382395236,0.36177225,4506.1,4506.0,4.501]
[1758382395636,2.5809862,4506.1,4506.0,4.501]
[1758382397207,2.5809862,4506.1,4506.0,0.792]
[1758382397394,1.05219422,4506.1,4505.8,0.001]
[1758382397580,2.21931245,4505.9,4505.8,0.001]
[1758382397787,2.55207614,4505.9,4505.8,3.71]
[1758382397970,2.78647614,4505.9,4505.8,3.71]
[1758382398175,2.5784847,4505.9,4505.8,3.71]
[1758382398983,3.08288293,4505.9,4505.8,3.71]
[1758382400095,2.21943854,4505.7,4505.4,0.793]
[1758382400301,2.21943854,4505.7,4505.6,4.501]
[1758382400510,2.34417518,4505.7,4505.6,4.501]
[1758382401008,2.57857518,4505.7,4505.6,4.501]
[1758382401580,0.35913664,4505.7,4505.6,4.501]
[1758382402067,2.5785476,4505.7,4505.6,4.501]
[1758382403517,2.57852222,4505.7,4505.6,4.501]
[1758382404754,0.35911126,4505.7,4505.6,4.501]
[1758382405038,2.21936317,4505.8,4505.6,4.501]
[1758382405255,2.21936317,4505.8,4505.7,0.792]
[1758382405545,2.34406992,4505.8,4505.7,0.792]
[1758382406413,2.57846992,4505.8,4505.7,0.792]
[1758382408323,2.21941096,4505.7,4505.6,4.501]
[1758382408510,2.21941096,4505.7,4505.6,0.792]
[1758382408511,2.80858444,4505.7,4505.6,0.792]
[1758382408706,2.80858444,4505.7,4505.6,4.501]
[1758382409045,2.80858444,4505.7,4505.6,0.792]
[1758382409422,2.80858444,4505.7,4505.5,3.709]
[1758382409423,2.21946022,4505.6,4505.5,3.709]
[1758382409612,2.21950948,4505.5,4505.4,4.502]
[1758382409808,2.78647983,4505.5,4505.4,0.001]
[1758382410824,2.80868296,4505.5,4505.4,0.001]
[1758382414068,6.51768296,4505.5,4505.4,0.001]
[1758382414264,6.49547983,4505.5,4505.4,0.001]
[1758382414466,7.46612719,4505.5,4505.4,0.001]
[1758382414869,10.46612719,4505.5,4505.4,0.001]
[1758382418285,11.57761771,4505.5,4505.1,0.011]
[1758382418447,5.21965728,4505.2,4505.1,0.011]
[1758382418785,14.49202801,4505.2,4505.1,0.011]
[1758382418958,14.72642801,4505.2,4505.1,0.011]
[1758382420875,6.10693381,4505.2,4505.1,0.011]
[1758382421053,9.81693381,4505.2,4505.1,0.011]
[1758382423075,9.81693381,4505.2,4505.1,1e-08]
[1758382424355,9.81693381,4505.2,4505.0,43.02869184]
[1758382424356,2.21970655,4505.1,4505.0,43.02869184]
[1758382424683,6.8020136,4505.1,4505.0,22.93969058]
[1758382424991,6.77981047,4505.1,4505.0,22.93969058]
[1758382425193,11.68930467,4505.1,4505.0,22.93969058]
[1758382427099,11.68838942,4505.1,4505.0,22.93969058]
[1758382430461,13.60838942,4505.1,4505.0,22.93969058]
[1758382434203,20.64838942,4505.1,4505.0,14.09991903]
[1758382434404,20.64838942,4505.1,4505.0,1e-08]
[1758382434578,21.31596771,4505.1,4505.0,1e-08]
[1758382437916,23.65296771,4505.1,4505.0,1e-08]
[1758382438482,27.36396771,4505.1,4505.0,1e-08]
[1758382438693,16.40671016,4505.1,4505.0,1e-08]
[1758382438892,25.02720436,4505.1,4505.0,1e-08]
[1758382439717,24.79120436,4505.1,4505.0,1e-08]
[1758382441692,14.25071016,4505.1,4505.0,1e-08]
[1758382441890,13.97017659,4505.1,4505.0,1e-08]
[1758382442091,16.97017659,4505.1,4505.0,0.20150001]
[1758382442292,10.25917659,4505.1,4505.0,0.20150001]
[1758382442602,16.97017659,4505.1,4505.0,0.20150001]
[1758382444202,13.25917659,4505.1,4505.0,0.20150001]
[1758382444405,16.97017659,4505.1,4505.0,0.20150001]
[1758382445100,11.03947004,4505.1,4505.0,0.20150001]
[1758382445305,0.33255171,4505.1,4505.0,0.20150001]
[1758382445927,0.35475484,4505.1,4505.0,0.20150001]
[1758382446130,0.14691002,4505.1,4505.0,0.20150001]
[1758382446425,0.35475484,4505.1,4505.0,0.20150001]
[1758382446628,2.57446139,4505.1,4505.0,0.20150001]
[1758382449413,2.57442485,4505.1,4505.0,0.20150001]
[1758382452562,6.28442485,4505.1,4505.0,1e-08]
[1758382452709,7.43287503,4505.1,4505.0,1e-08]
[1758382452915,7.52186626,4505.1,4505.0,1e-08]
[1758382453632,3.81186626,4505.1,4505.0,1e-08]
[1758382453829,7.54406939,4505.1,4505.0,1e-08]
[1758382454129,7.52186626,4505.1,4505.0,1e-08]
[1758382455021,7.52386626,4505.1,4505.0,1e-08]
[1758382456206,0.4235064,4505.1,4505.0,1e-08]
[1758382456323,4.04451517,4505.1,4505.0,0.20150001]
[1758382456852,0.12667035,4505.1,4505.0,0.99350001]
[1758382457052,0.002,4505.1,4505.0,0.99350001]
[1758382457238,0.002,4505.1,4505.0,1.01569756]
[1758382458315,0.002,4505.1,4505.0,3.23545338]
[1758382458549,0.002,4505.1,4505.0,1.01569756]
[1758382461806,0.002,4505.1,4505.0,3.23545338]
[1758382462806,0.002,4505.1,4505.0,1.01569756]
[1758382463723,0.002,4505.1,4505.0,4.64314059]
[1758382463894,0.002,4505.1,4505.0,4.62094304]
[1758382464589,0.002,4505.1,4505.0,2.40118722]
[1758382464790,0.002,4505.1,4505.0,0.99350001]
[1758382467061,0.002,4505.1,4505.0,3.21325583]
[1758382467895,0.002,4505.1,4505.0,3.23545338]
[1758382469966,0.002,4505.1,4505.0,3.32440661]
[1758382473468,0.002,4505.1,4505.0,6.32440661]
[1758382473690,0.002,4505.1,4505.0,8.13546797]
[1758382474205,0.002,4505.1,4505.0,11.84446797]
[1758382479404,0.002,4505.6,4505.5,3.01150948]
[1758382479605,0.002,4505.6,4505.5,14.73804858]
[1758382479818,0.002,4505.6,4505.5,14.91735349]
[1758382480023,0.002,4505.6,4505.5,19.63104656]
[1758382480230,0.002,4505.8,4505.7,3.01141096]
[1758382480389,0.002,4505.8,4505.7,6.74260506]
[1758382480597,0.002,4505.8,4505.7,9.92191096]
[1758382481194,0.002,4505.8,4505.7,10.01083473]
[1758382481404,0.002,4505.8,4505.7,12.20477286]
[1758382482095,1e-08,4506.1,4506.0,3.0112632]
[1758382482298,1e-08,4506.1,4506.0,15.81879984]
[1758382482499,1e-08,4506.1,4506.0,15.99810721]
[1758382482900,1e-08,4506.1,4506.0,16.08702663]
[1758382483130,1e-08,4506.1,4506.0,16.86075517]
[1758382488531,1e-08,4506.1,4506.0,10.58191116]
[1758382489419,1e-08,4506.1,4506.0,16.65825517]
[1758382490061,1e-08,4506.1,4506.0,9.78991116]
[1758382490222,1e-08,4506.1,4506.0,10.58191116]
[1758382490943,1e-08,4506.1,4506.0,10.78341116]
[1758382492165,1e-08,4506.1,4506.0,10.58191116]
[1758382492379,1e-08,4506.1,4506.0,10.58291116]
[1758382494164,0.24980001,4506.1,4506.0,10.58191116]
[1758382495875,0.24980001,4506.1,4506.0,9.01618262]
[1758382496073,0.24980001,4506.1,4506.0,8.9272632]
[1758382496378,0.24980001,4506.1,4506.0,9.7192632]
[1758382497087,1e-08,4506.1,4506.0,5.9272632]
[1758382497243,0.24980001,4506.1,4506.0,6.7192632]
[1758382498656,0.24980001,4506.1,4506.0,3.0122632]
[1758382498861,0.24980001,4506.1,4506.0,3.709]
[1758382499062,0.24980001,4506.1,4506.0,4.501]
[1758382500390,0.24980001,4506.1,4506.0,0.793]
[1758382500559,0.24980001,4506.1,4506.0,4.501]
[1758382506904,0.22580001,4506.1,4506.0,4.501]
[1758382510121,0.22580001,4506.1,4506.0,6.7202632]
[1758382510412,1e-08,4506.1,4506.0,6.7202632]
[1758382510578,0.22580001,4506.1,4506.0,6.7202632]
[1758382510774,1e-08,4506.1,4506.0,6.7202632]
[1758382512195,1e-08,4506.1,4506.0,7.65076531]
[1758382517907,1e-08,4506.1,4506.0,7.44926531]
[1758382518325,0.002,4506.6,4506.3,0.792]
[1758382518523,0.002,4506.6,4506.5,9.08736098]
[1758382518698,0.002,4506.6,4506.5,14.28663742]
[1758382518888,0.002,4506.6,4506.5,14.48813742]
[1758382519308,0.002,4506.6,4506.5,14.57705941]
[1758382522726,0.002,4506.6,4506.5,14.37555941]
[1758382524897,0.002,4506.6,4506.5,14.57705941]
[1758382527762,0.002,4506.6,4506.5,13.20313704]
[1758382532268,0.002,4506.6,4506.5,8.2992154]
[1758382532438,0.2333,4506.6,4506.5,16.91013704]
[1758382534473,0.002,4506.6,4506.5,16.91013704]
[1758382535668,0.2333,4506.6,4506.5,16.91013704]
[1758382536124,0.2333,4506.6,4506.5,2.30793896]
[1758382536323,0.2333,4506.6,4506.5,5.94820713]
[1758382536567,0.2333,4506.6,4506.5,5.92601697]
[1758382537379,0.2333,4506.6,4506.5,6.71801697]
[1758382545695,0.2333,4506.6,4506.5,4.499]
[1758382549001,0.2333,4506.6,4506.5,6.71801697]
[1758382550659,0.2333,4506.6,4506.5,0.792]
[1758382550860,0.2333,4506.6,4506.5,4.499]
[1758382552658,0.47991839,4506.6,4506.5,4.499]
[1758382554885,0.47991839,4506.6,4506.3,0.001]
[1758382555201,0.02220313,4506.5,4506.3,3.708]
[1758382555382,0.2342,4506.4,4506.3,3.708]
[1758382556297,0.25640313,4506.4,4506.3,3.708]
[1758382556460,0.52879792,4506.4,4506.3,3.708]
[1758382557591,0.65325587,4506.4,4506.3,3.708]
[1758382561074,0.35865795,4506.4,4506.3,3.708]
[1758382561402,0.2342,4506.4,4506.3,3.708]
[1758382561610,0.02420313,4506.6,4506.3,3.708]
[1758382561815,0.2342,4506.5,4506.3,3.708]
[1758382562015,0.25080313,4506.4,4506.3,3.708]
[1758382562379,0.2286,4506.4,4506.3,3.708]
[1758382563213,0.50897017,4506.4,4506.3,3.708]
[1758382563377,0.2286,4506.4,4506.3,3.708]
[1758382564926,2.5943511,4506.4,4506.3,3.708]
[1758382565260,0.25080313,4506.4,4506.3,3.708]
[1758382565403,2.44766621,4506.4,4506.3,0.001]
[1758382565719,5.80205893,4506.4,4506.3,0.001]
[1758382565917,7.16151995,4506.4,4506.3,0.001]
[1758382567034,7.42831644,4506.4,4506.3,0.001]
[1758382567326,7.16151995,4506.4,4506.3,0.001]
[1758382570019,7.42831644,4506.4,4506.3,0.001]
[1758382572756,11.13631644,4506.4,4506.3,0.001]
[1758382579334,7.42831644,4506.4,4506.3,0.001]
[1758382579523,11.13631644,4506.4,4506.3,0.001]
[1758382579718,14.46831644,4506.4,4506.3,0.001]
[1758382580272,18.17631644,4506.4,4506.3,0.001]
[1758382581257,18.17816272,4506.4,4506.3,0.001]
[1758382583560,14.47016272,4506.4,4506.3,0.001]
[1758382583735,18.17816272,4506.4,4506.3,0.001]
[1758382585566,14.47016272,4506.4,4506.3,0.001]
[1758382585773,18.17816272,4506.4,4506.3,0.001]
[1758382585980,14.47016272,4506.4,4506.3,0.001]
[1758382586166,18.17816272,4506.4,4506.3,0.001]
[1758382589070,18.17828881,4506.4,4506.3,0.001]
[1758382589781,24.25618051,4506.4,4506.3,0.001]
[1758382593101,24.52159979,4506.4,4506.3,0.001]
[1758382595678,24.25618051,4506.4,4506.3,0.001]
[1758382596496,2.21921395,4506.1,4506.0,0.001]
[1758382596694,12.19136988,4506.1,4506.0,0.001]
[1758382596904,12.16994897,4506.1,4506.0,0.001]
[1758382597223,12.25893663,4506.1,4506.0,0.001]
[1758382598107,12.25894652,4506.1,4506.0,0.001]
[1758382598579,12.50034652,4506.1,4506.0,0.001]
[1758382605553,12.25894652,4506.1,4506.0,0.001]
[1758382605735,11.29735192,4505.6,4505.5,0.001]
[1758382605933,15.33830599,4505.6,4505.5,0.001]
[1758382606245,15.83670248,4505.6,4505.5,0.001]
[1758382606450,2.21970655,4505.1,4504.2,0.2015]
[1758382606650,17.54755194,4505.1,4504.1,0.01]
[1758382606949,18.90255131,4505.1,4504.1,0.01]
[1758382607134,18.90255131,4505.1,4504.3,0.2015]
[1758382608645,18.90246762,4505.1,4504.3,0.2015]
[1758382609842,18.90246762,4505.1,4504.1,0.01]
[1758382609843,18.90246762,4505.1,4504.1,0.2115]
[1758382610205,18.67086762,4505.1,4504.1,0.01]
[1758382610432,18.90246762,4505.1,4504.3,0.2015]
[1758382612837,18.90246762,4505.1,4503.1,0.01]
[1758382612838,2.22007409,4504.4,4503.1,0.01]
[1758382613039,10.14096521,4504.3,4503.2,0.2015]
[1758382613285,5.96087038,4504.2,4503.2,0.2015]
[1758382613440,2.22041418,4503.7,4503.3,0.792]
[1758382613640,3.35507351,4503.6,4503.4,0.2015]
[1758382613979,0.33287038,4503.5,4503.4,0.2015]
[1758382614476,2.57556868,4503.5,4503.4,0.2015]
[1758382615777,0.35507351,4503.5,4503.4,0.2015]
[1758382616582,2.57556868,4503.5,4503.4,0.2015]
[1758382617851,2.77706868,4503.5,4503.4,0.2015]
[1758382619293,2.22054447,4503.4,4503.3,0.001]
[1758382619481,6.26241485,4503.4,4503.3,0.001]
[1758382619868,4.04187038,4503.4,4503.3,0.2025]
[1758382620068,4.06407351,4503.4,4503.3,0.2025]
[1758382620282,6.28461798,4503.4,4503.3,0.2025]
[1758382620574,6.05432474,4503.4,4503.3,0.2025]
[1758382620792,6.26173782,4503.4,4503.3,0.2025]
[1758382622271,6.26173782,4503.4,4503.3,0.001]
[1758382622801,0.33219335,4503.4,4503.3,0.2025]
[1758382623011,6.28394095,4503.4,4503.3,0.2025]
[1758382623220,4.04119335,4503.4,4503.3,0.2025]
[1758382623411,4.06339648,4503.4,4503.3,0.2025]
[1758382623581,3.83378027,4503.4,4503.3,0.2025]
[1758382623777,0.12478027,4503.4,4503.3,0.2025]
[1758382623970,3.709,4503.4,4503.3,0.2025]
[1758382624299,3.83378027,4503.4,4503.3,0.2025]
[1758382624703,0.12478027,4503.4,4503.3,0.2025]
[1758382624867,3.709,4503.4,4503.3,0.2025]
[1758382625198,3.83378027,4503.4,4503.3,0.2025]
[1758382626590,0.12478027,4503.4,4503.3,0.2025]
[1758382626820,3.709,4503.4,4503.3,0.2025]
[1758382627023,3.83378027,4503.4,4503.3,0.2025]
[1758382627188,3.83346225,4503.4,4503.3,0.2025]
[1758382629716,0.12446225,4503.4,4503.3,0.2025]
[1758382629888,3.709,4503.4,4503.3,0.2025]
[1758382630217,4.04102214,4503.4,4503.3,0.2025]
[1758382630419,0.33202214,4503.4,4503.3,0.2025]
[1758382630719,3.709,4503.4,4503.3,0.2025]
[1758382631014,0.33202214,4503.4,4503.3,0.9945]
[1758382631215,0.12446225,4503.4,4503.3,0.2025]
[1758382632217,0.33215075,4503.4,4503.3,0.2025]
[1758382632731,3.709,4503.5,4503.3,3.23729971]
[1758382633033,3.709,4503.6,4503.4,0.9935]
[1758382633238,0.33238042,4503.5,4503.4,0.792]
[1758382633392,0.33238042,4503.5,4503.3,0.02320593]
[1758382633591,0.33238042,4503.5,4503.4,0.792]
[1758382633897,0.33238042,4503.5,4503.4,0.9935]
[1758382635526,0.12461371,4503.5,4503.4,0.9935]
[1758382635908,0.33238042,4503.5,4503.4,0.9935]
[1758382636486,0.33238042,4503.5,4503.4,3.50119284]
[1758382636690,0.12461371,4503.5,4503.4,3.50119284]
[1758382637127,0.12461371,4503.5,4503.4,3.29969284]
[1758382637342,0.12461371,4503.5,4503.4,3.21404447]
[1758382637621,0.12461371,4503.5,4503.4,0.792]
[1758382637829,0.12461371,4503.5,4503.4,3.01254447]
[1758382638122,0.12461371,4503.5,4503.4,3.21404447]
[1758382638636,0.02420313,4504.1,4503.4,3.21404447]
[1758382638637,0.12461371,4503.7,4503.6,3.01244586]
[1758382638844,0.12461371,4503.7,4503.6,3.21394586]
[1758382640003,0.12461371,4503.7,4503.6,3.75971539]
[1758382640406,0.12461371,4503.9,4503.8,2.22034726]
[1758382640743,0.12461371,4503.9,4503.8,2.44405073]
[1758382641811,0.002,4504.1,4504.0,2.22024866]
[1758382642054,0.002,4504.1,4504.0,3.03445114]
[1758382642248,0.12661371,4504.1,4504.0,3.23595114]
[1758382642423,0.002,4504.1,4504.0,3.23595114]
[1758382642626,0.002,4504.1,4504.0,3.03445114]
[1758382642940,0.002,4504.1,4504.0,3.23595114]
[1758382643309,0.002,4504.1,4504.0,4.15238098]
[1758382647429,0.002,4504.1,4504.0,7.86038098]
[1758382647617,0.002,4504.1,4504.0,7.8381785]
[1758382653692,0.002,4504.1,4504.0,7.6366785]
[1758382662819,0.002,4504.1,4504.0,7.8381785]
[1758382665467,0.002,4504.1,4504.0,12.74950834]
[1758382670403,0.002,4504.1,4504.0,12.54800834]
[1758382672924,0.002,4504.1,4504.0,12.54900834]
[1758382678078,0.002,4504.1,4504.0,3.9296785]
[1758382678244,0.2513,4504.1,4504.0,3.707]
[1758382678425,0.2513,4504.1,4504.0,0.001]
[1758382678426,0.37621107,4504.1,4504.0,0.001]
[1758382678746,0.37621107,4504.1,4504.0,3.707]
[1758382679120,0.75242214,4504.1,4504.0,3.707]
[1758382679322,1.28049882,4504.1,4504.0,3.707]
[1758382680364,11.67882452,4504.1,4504.0,0.001]
[1758382681261,11.41202803,4504.1,4504.0,0.001]
[1758382682250,16.59015436,4504.1,4504.0,0.001]
[1758382682455,6.50069819,4504.1,4504.0,0.001]
[1758382694470,6.29287657,4504.1,4504.0,0.001]
[1758382695596,10.01187657,4504.1,4504.0,0.001]
[1758382698005,10.01087657,4504.1,4504.0,0.001]
[1758382699094,10.21820133,4504.1,4504.0,0.001]
[1758382699610,6.50020133,4504.1,4504.0,0.001]
[1758382699773,10.21820133,4504.1,4504.0,0.001]
[1758382704119,6.50020133,4504.1,4504.0,0.001]
[1758382704319,10.21620133,4504.1,4504.0,0.001]
[1758382712603,16.56534245,4504.1,4504.0,0.001]
[1758382714509,23.60534245,4504.1,4504.0,0.001]
[1758382718175,13.54020133,4504.1,4504.0,0.001]
[1758382718381,13.29090133,4504.1,4504.0,0.001]
[1758382718541,17.00490133,4504.1,4504.0,0.001]
[1758382719034,13.29090133,4504.1,4504.0,0.001]
[1758382719237,17.00490133,4504.1,4504.0,0.001]
[1758382720766,13.29090133,4504.1,4504.0,0.001]
[1758382720959,17.00490133,4504.1,4504.0,0.001]
[1758382721158,13.29090133,4504.1,4504.0,0.001]
[1758382721456,17.00390133,4504.1,4504.0,0.001]
[1758382722566,13.29090133,4504.1,4504.0,0.001]
[1758382722730,17.00390133,4504.1,4504.0,0.001]
[1758382726564,7.7504469,4504.1,4504.0,0.2025]
[1758382726723,0.33423583,4504.1,4504.0,3.21474866]
[1758382727076,0.12691107,4504.1,4504.0,3.21474866]
[1758382727678,0.12691107,4504.1,4504.0,3.23695114]
[1758382727882,0.002,4504.1,4504.0,3.23695114]
[1758382728046,0.002,4504.1,4504.0,4.39091509]
[1758382729642,0.002,4504.1,4504.0,2.14846395]
[1758382729843,0.002,4504.1,4504.0,4.36871261]
[1758382730287,0.002,4504.1,4504.0,0.793]
[1758382730823,0.002,4504.1,4504.0,0.9945]
[1758382732283,0.002,4504.1,4504.0,3.21474866]
[1758382733687,0.002,4504.1,4504.0,0.9945]
[1758382733987,0.002,4504.1,4504.0,0.793]
[1758382735183,0.002,4504.1,4504.0,0.001]
[1758382736090,0.002,4504.1,4504.0,2.42274866]
[1758382736295,0.002,4504.1,4504.0,0.001]
[1758382737383,0.002,4504.1,4504.0,2.22124866]
[1758382737910,0.002,4504.1,4504.0,3.68128326]
[1758382738091,0.002,4504.1,4504.0,3.50198574]
[1758382739086,0.002,4504.1,4504.0,3.47978326]
[1758382740300,0.002,4504.1,4504.0,3.68128326]
[1758382740708,0.002,4504.1,4504.0,3.47978326]